bitfinex/quotes_ETHUSD_20250424
["timestamp","ask_amount","ask_price","bid_price","bid_amount"]
[1745535205181,3.8047,1758.5,1758.3,0.17294247]
[1745535205375,9.49138422,1758.5,1758.3,0.17294247]
[1745535206886,9.49138422,1758.5,1758.1,12.16096701]
[1745535207087,9.49138422,1758.5,1758.2,0.17139963]
[1745535207297,9.49138422,1758.5,1758.1,12.16096701]
[1745535207500,9.49138422,1758.5,1758.3,0.17117431]
[1745535207688,9.49138422,1758.5,1758.2,0.17139963]
[1745535207874,9.49138422,1758.5,1758.2,5.68763493]
[1745535208079,9.49138422,1758.5,1758.3,0.17117431]
[1745535208281,9.49138422,1758.5,1758.1,12.16086335]
[1745535208501,9.49138422,1758.5,1758.2,0.17139963]
[1745535208912,9.49138422,1758.5,1758.1,13.37694969]
[1745535209088,9.49138422,1758.5,1758.3,0.17117431]
[1745535209283,9.49138422,1758.5,1758.1,12.16087824]
[1745535209611,9.49138422,1758.5,1758.2,5.85902332]
[1745535209780,9.49138422,1758.5,1758.2,0.17139963]
[1745535210316,9.49138422,1758.5,1758.3,0.17117431]
[1745535210893,9.49138422,1758.5,1758.1,6.47313117]
[1745535211097,9.49138422,1758.5,1758.2,0.17139963]
[1745535211304,9.49138422,1758.5,1758.1,12.16088906]
[1745535211519,9.49138422,1758.5,1758.3,0.17117431]
[1745535211706,11.05087634,1758.5,1758.2,0.17139963]
[1745535211910,11.05087634,1758.5,1758.4,0.17094902]
[1745535212207,11.05087634,1758.5,1758.3,0.17117431]
[1745535212375,11.05087634,1758.5,1758.4,0.17094902]
[1745535212817,11.05087634,1758.5,1758.1,6.47313117]
[1745535213013,9.49138422,1758.5,1758.4,0.17094902]
[1745535213183,9.49138422,1758.5,1758.1,6.47313117]
[1745535213723,9.49138422,1758.5,1758.2,0.17139963]
[1745535214108,9.49138422,1758.5,1758.1,6.47313117]
[1745535214314,15.17832709,1758.5,1758.3,0.17117431]
[1745535214500,16.73786391,1758.5,1758.2,0.17139963]
[1745535214830,11.05092104,1758.5,1758.1,6.47313117]
[1745535214989,9.49138422,1758.5,1758.3,0.17117431]
[1745535215190,9.49138422,1758.5,1758.2,5.85890463]
[1745535215390,9.49138422,1758.5,1758.4,0.17094902]
[1745535215604,9.49138422,1758.5,1758.3,0.17117431]
[1745535215900,9.49138422,1758.5,1758.4,0.17094902]
[1745535216103,11.05088098,1758.5,1758.1,12.16089765]
[1745535216357,9.49138422,1758.5,1758.4,0.17094902]
[1745535216627,9.49138422,1758.5,1758.1,6.47313117]
[1745535216826,9.49138422,1758.5,1758.4,0.17094902]
[1745535217001,9.49138422,1758.5,1758.1,12.16086087]
[1745535217197,9.49138422,1758.5,1758.4,0.17094902]
[1745535217403,16.73778035,1758.5,1758.1,6.4731297]
[1745535217611,9.49138422,1758.5,1758.4,0.17094902]
[1745535217813,9.49138422,1758.5,1758.1,6.4731297]
[1745535218032,9.49138422,1758.5,1758.4,0.17094902]
[1745535218228,9.49138422,1758.5,1758.1,6.4731297]
[1745535218439,9.49138422,1758.5,1758.4,0.17094902]
[1745535218644,5.36419171,1758.5,1758.2,5.68753823]
[1745535218854,3.8047,1758.5,1758.4,0.17094902]
[1745535219004,3.8047,1758.5,1758.3,0.17117431]
[1745535219204,3.8047,1758.5,1758.4,0.17094902]
[1745535219626,3.8047,1758.5,1758.2,5.6874125]
[1745535219831,3.8047,1758.5,1758.4,0.17090661]
[1745535220027,3.8047,1758.5,1758.3,0.1711319]
[1745535220256,3.8047,1758.5,1758.4,0.17090661]
[1745535220559,3.8047,1758.5,1758.2,5.6874125]
[1745535220729,3.8047,1758.5,1758.4,0.17090661]
[1745535220912,3.8047,1758.5,1758.3,0.1711319]
[1745535221113,9.49138828,1758.5,1758.4,0.17090661]
[1745535221338,3.8047,1758.5,1758.4,0.17090661]
[1745535221537,3.8047,1758.5,1758.2,5.6874125]
[1745535221716,3.8047,1758.5,1758.4,0.17090661]
[1745535221916,3.8047,1758.5,1758.3,0.1711319]
[1745535222116,3.8047,1758.5,1758.4,0.17065469]
[1745535222915,3.0,1758.5,1758.2,11.37486235]
[1745535223120,3.0,1758.5,1758.4,0.17065469]
[1745535223348,3.0,1758.5,1758.3,0.17079516]
[1745535223551,3.0,1758.5,1758.4,0.17061228]
[1745535223948,3.0,1758.5,1758.2,5.6874125]
[1745535224158,3.0,1758.5,1758.4,0.17061228]
[1745535224344,3.0,1758.5,1758.3,0.17083757]
[1745535224657,3.0,1758.5,1758.4,0.17061228]
[1745535225018,3.0,1758.5,1758.2,5.6874125]
[1745535225219,3.0,1758.5,1758.4,0.17061228]
[1745535225418,3.0,1758.5,1758.3,0.17083757]
[1745535225652,8.68666477,1758.5,1758.4,0.17061228]
[1745535226025,8.68666477,1758.5,1758.2,5.6874125]
[1745535226231,8.68666477,1758.5,1758.4,0.17061228]
[1745535226431,10.24102453,1758.5,1758.3,0.17083757]
[1745535226632,10.24102453,1758.5,1758.4,0.17061228]
[1745535226927,10.24102453,1758.5,1758.2,5.6874125]
[1745535227126,10.46548754,1758.5,1758.4,0.17061228]
[1745535227356,8.68698817,1758.4,1758.3,0.17083757]
[1745535227542,3.0,1758.3,1758.0,5.68806028]
[1745535227746,3.0,1758.3,1758.0,11.37617024]
[1745535227948,3.0,1758.3,1758.0,13.06805726]
[1745535228168,3.0,1758.3,1758.1,5.68795444]
[1745535235073,3.0,1758.3,1758.2,0.17155083]
[1745535235372,3.0,1758.3,1758.1,5.68795444]
[1745535235572,3.0,1758.3,1758.2,0.17155083]
[1745535235974,3.0,1758.3,1758.1,5.68795444]
[1745535236158,3.0,1758.3,1758.2,0.17155083]
[1745535236663,3.47262515,1758.3,1757.7,6.50574075]
[1745535236833,9.55630102,1758.3,1758.2,0.17155083]
[1745535237031,3.0,1757.9,1757.6,5.68944434]
[1745535237450,3.0,1757.9,1757.7,0.17282899]
[1745535237745,3.0,1757.9,1757.6,5.6893712]
[1745535237969,3.0,1757.9,1757.8,0.17260355]
[1745535238154,3.0,1757.9,1757.7,0.17282899]
[1745535238355,3.0,1757.9,1757.8,0.17260355]
[1745535238918,3.0,1757.9,1757.6,6.90893269]
[1745535239157,3.0,1757.9,1757.7,0.17282899]
[1745535239573,3.0,1757.9,1757.6,6.90893269]
[1745535239734,3.0,1757.9,1757.8,0.17260355]
[1745535239933,3.0,1757.9,1757.7,0.17282899]
[1745535240149,3.0,1757.9,1757.8,0.17260355]
[1745535240432,8.68860572,1757.9,1757.8,0.17260355]
[1745535240633,8.68860572,1757.9,1757.6,6.90893269]
[1745535240934,8.68860572,1757.9,1757.7,0.17282899]
[1745535241565,8.68860572,1757.9,1757.8,0.17260355]
[1745535242059,8.68860572,1757.9,1757.6,6.90909559]
[1745535242264,8.68860572,1757.9,1757.8,0.17260355]
[1745535242462,8.68860572,1757.9,1757.7,0.17282899]
[1745535242690,8.68860572,1757.9,1757.8,0.17260355]
[1745535242889,8.68860572,1757.9,1757.6,5.6895341]
[1745535243095,5.68896053,1757.8,1757.7,0.17282899]
[1745535243277,5.68896053,1757.8,1757.5,6.50618231]
[1745535243656,5.68896053,1757.8,1757.6,0.17688523]
[1745535248687,9.517153,1757.7,1757.6,0.17688523]
[1745535249192,9.51812419,1757.4,1757.3,0.4048968]
[1745535249984,9.51812419,1757.4,1757.3,0.55641335]
[1745535250501,9.51812419,1757.4,1757.3,0.4048968]
[1745535250705,9.51812419,1757.4,1757.3,0.55471506]
[1745535251007,11.03894095,1757.4,1757.3,0.55471506]
[1745535251173,11.97336839,1757.4,1757.3,0.55471506]
[1745535251379,11.97336839,1757.4,1757.3,0.4048968]
[1745535251682,12.40111465,1757.4,1757.3,0.55475751]
[1745535252195,12.32711465,1757.4,1757.3,0.55475751]
[1745535252503,12.32711465,1757.4,1757.3,0.4048968]
[1745535252863,17.04911465,1757.4,1757.3,0.4048968]
[1745535253066,17.04911465,1757.4,1757.3,1e-08]
[1745535253387,16.11468721,1757.4,1757.3,1e-08]
[1745535253765,16.11468721,1757.4,1757.3,0.14099977]
[1745535253984,16.11468721,1757.4,1757.3,1e-08]
[1745535256504,5.69234465,1756.8,1756.4,6.44878644]
[1745535256689,5.69234465,1756.8,1756.5,0.14395118]
[1745535257366,3.0,1756.7,1756.5,0.14395118]
[1745535257898,8.69250049,1756.7,1756.5,0.14395118]
[1745535258116,8.69250049,1756.7,1756.5,0.09395118]
[1745535258405,9.47041566,1756.6,1756.5,0.14448425]
[1745535258706,5.69318876,1756.5,1756.2,6.50420651]
[1745535258880,5.69318876,1756.5,1756.3,0.14139822]
[1745535259394,11.28670728,1756.6,1756.3,0.14139822]
[1745535259601,4.81629162,1756.6,1756.3,0.14139822]
[1745535259797,4.723,1757.0,1756.4,0.8236]
[1745535259999,3.0,1756.9,1756.5,5.69302599]
[1745535260209,8.69200416,1756.9,1756.5,5.83513172]
[1745535260503,8.69200416,1756.9,1756.5,5.83502089]
[1745535261280,8.69200416,1756.9,1756.5,0.14210573]
[1745535261281,3.0,1756.6,1756.5,0.14210573]
[1745535261591,3.0,1756.6,1756.3,5.69352475]
[1745535261792,3.0,1756.6,1756.5,0.14689046]
[1745535261990,3.0,1756.6,1756.3,5.69352475]
[1745535261991,3.0,1756.6,1756.4,0.14711629]
[1745535262191,3.0,1756.6,1756.5,0.14689046]
[1745535262613,3.0,1756.6,1756.4,5.69333966]
[1745535262799,3.0,1756.6,1756.5,0.92199046]
[1745535262983,3.86920042,1756.8,1756.5,6.61499605]
[1745535263390,9.5614173,1756.8,1756.5,0.92199046]
[1745535263575,15.25389277,1756.8,1756.5,0.92199046]
[1745535263775,9.5614173,1756.8,1756.5,0.92199046]
[1745535264103,8.69281566,1756.6,1756.5,0.14689046]
[1745535264309,8.69281566,1756.6,1756.3,0.7751]
[1745535264608,8.69281566,1756.6,1756.4,0.147225]
[1745535264808,3.0,1756.6,1756.4,0.147225]
[1745535264978,3.0,1756.6,1756.3,6.46866118]
[1745535265177,3.0,1756.7,1756.5,0.1474953]
[1745535265378,3.0,1756.7,1756.5,5.69310116]
[1745535265613,3.0,1756.7,1756.6,0.14726949]
[1745535266016,3.0,1756.7,1756.4,5.69327824]
[1745535266316,3.0,1756.7,1756.5,0.1474953]
[1745535266821,8.69250084,1756.7,1756.5,0.1474953]
[1745535267700,3.0,1756.7,1756.5,0.1474953]
[1745535268110,8.69258016,1756.7,1756.5,0.1474953]
[1745535268313,4.62765802,1756.6,1756.5,0.1474953]
[1745535268496,3.0,1756.7,1756.4,5.69333397]
[1745535268685,1.18155922,1756.8,1756.5,0.90685541]
[1745535268880,3.0,1756.8,1756.6,5.69265652]
[1745535269085,3.0,1756.8,1756.7,0.14670385]
[1745535269286,3.0,1756.8,1756.5,6.45263457]
[1745535269509,3.0,1756.8,1756.6,0.14692962]
[1745535270190,3.0,1756.8,1756.6,5.83972179]
[1745535270389,3.0,1756.8,1756.6,7.06877619]
[1745535270621,3.0,1756.8,1756.7,5.6924916]
[1745535270987,0.4164153,1757.1,1756.7,5.83919545]
[1745535271209,3.0,1757.1,1756.8,6.46397697]
[1745535271418,3.0,1757.1,1756.8,6.60964864]
[1745535272011,6.45267874,1757.2,1756.8,7.83980174]
[1745535272490,3.0,1757.1,1756.8,7.83980174]
[1745535272685,6.45267874,1757.2,1756.8,7.83980174]
[1745535273124,3.0,1757.1,1756.8,13.5317372]
[1745535273319,3.0,1757.1,1756.9,5.69181546]
[1745535273527,4.781,1757.3,1757.0,6.5026124]
[1745535273722,4.781,1757.3,1757.0,0.95642027]
[1745535273902,3.0,1757.2,1757.0,0.95642027]
[1745535277028,8.69088979,1757.2,1757.0,0.95642027]
[1745535277326,4.43816437,1757.2,1757.0,0.95642027]
[1745535279623,4.43816437,1757.2,1757.0,0.14522027]
[1745535280532,4.43816437,1757.2,1757.0,5.83665013]
[1745535280834,4.43816437,1757.2,1757.0,5.83673069]
[1745535284143,5.19506437,1757.2,1757.0,0.14522027]
[1745535284317,0.51950644,1757.1,1757.0,0.14522027]
[1745535284516,3.7569,1757.2,1757.0,0.14522027]
[1745535285942,3.0,1757.2,1757.0,0.14522027]
[1745535286728,8.69097346,1757.2,1757.0,0.14522027]
[1745535287344,3.0,1757.2,1757.0,5.83666781]
[1745535287737,3.0,1757.2,1757.0,0.14522027]
[1745535287946,3.95068539,1757.2,1757.0,0.14522027]
[1745535288606,9.6416029,1757.2,1757.0,0.14522027]
[1745535288810,9.6416029,1757.2,1756.8,12.20434152]
[1745535289012,9.6416029,1757.2,1757.1,0.14152283]
[1745535289239,9.6416029,1757.2,1756.9,5.69181446]
[1745535289420,9.6416029,1757.2,1757.1,0.14169268]
[1745535289621,9.6416029,1757.2,1756.9,5.69181446]
[1745535289823,9.6416029,1757.2,1757.1,0.14169268]
[1745535290046,9.6416029,1757.2,1756.9,5.69181446]
[1745535290224,9.6416029,1757.2,1757.1,0.14169268]
[1745535290423,9.6416029,1757.2,1756.9,5.69181446]
[1745535290624,9.6416029,1757.2,1757.1,0.14169268]
[1745535290823,9.6416029,1757.2,1756.9,5.69181446]
[1745535291035,9.6416029,1757.2,1757.1,0.14169268]
[1745535291346,3.95068539,1757.2,1756.9,5.69181446]
[1745535291509,3.95068539,1757.2,1757.1,0.14169268]
[1745535291709,3.95068539,1757.2,1757.0,0.14191834]
[1745535291947,3.95068539,1757.2,1757.1,0.14152283]
[1745535292442,9.64155967,1757.2,1757.1,0.14152283]
[1745535292652,9.64157821,1757.2,1756.9,5.69168992]
[1745535292836,9.64157821,1757.2,1757.1,0.14152283]
[1745535293142,9.64157821,1757.2,1756.9,5.69168992]
[1745535293450,9.64157821,1757.2,1757.0,0.14174847]
[1745535295746,0.96415782,1757.1,1757.0,0.14174847]
[1745535296150,0.96415782,1757.1,1756.8,12.20431249]
[1745535296348,0.96415782,1757.1,1757.0,0.14179094]
[1745535296553,0.96415782,1757.1,1756.9,0.14201661]
[1745535296741,0.96415782,1757.1,1757.0,0.14179094]
[1745535297050,0.96415782,1757.1,1756.8,6.51234126]
[1745535297254,9.64157821,1757.2,1757.0,0.14179094]
[1745535297428,3.95068539,1757.2,1756.9,5.69164994]
[1745535297621,8.69090615,1757.2,1757.1,0.14152283]
[1745535297814,8.69090615,1757.2,1756.9,5.69164994]
[1745535298121,8.69090615,1757.2,1757.1,0.14152283]
[1745535298321,8.69090615,1757.2,1757.0,0.14174847]
[1745535298661,8.69090615,1757.2,1757.1,0.14152283]
[1745535298990,8.69090615,1757.2,1756.9,5.69164994]
[1745535298991,10.21067403,1757.2,1756.9,5.69164994]
[1745535299138,8.69090615,1757.2,1757.1,0.14152283]
[1745535299557,8.69090615,1757.2,1756.9,5.69164994]
[1745535299851,8.69090615,1757.2,1757.0,0.14210114]
[1745535301245,8.69090615,1757.2,1756.8,12.20429663]
[1745535301452,8.69090615,1757.2,1757.1,0.1418755]
[1745535301651,10.21067403,1757.2,1756.9,5.69179591]
[1745535301853,10.21067403,1757.2,1757.1,0.1418755]
[1745535302249,4.51976788,1757.2,1756.9,11.38343419]
[1745535302556,3.0,1757.2,1757.1,0.1418755]
[1745535302737,3.0,1757.2,1757.0,0.14210114]
[1745535302944,3.0,1757.2,1757.1,0.1418755]
[1745535303653,3.0,1757.2,1757.0,5.69138314]
[1745535303834,5.69009256,1757.5,1757.1,6.5902316]
[1745535304028,3.0,1757.4,1757.1,7.24924768]
[1745535304256,8.69022785,1757.4,1757.1,6.59022452]
[1745535304461,5.69009256,1757.5,1757.2,5.69074186]
[1745535304758,3.0,1757.4,1757.2,5.83224059]
[1745535305658,3.0,1757.4,1757.2,0.14149873]
[1745535307661,0.7728,1758.1,1757.2,1.13283008]
[1745535307832,0.7728,1758.1,1757.8,6.480097]
[1745535308026,3.7728,1758.1,1757.8,6.47992498]
[1745535308362,0.7728,1758.1,1757.9,0.1235685]
[1745535308557,5.68828213,1758.0,1757.9,0.1235685]
[1745535308758,3.0,1758.0,1757.7,5.68904469]
[1745535309058,3.0,1758.0,1757.8,0.11304625]
[1745535309355,0.7728,1758.1,1757.8,0.11304625]
[1745535309730,11.64122976,1758.3,1757.8,6.59292736]
[1745535310061,11.20530483,1758.3,1757.9,5.68855768]
[1745535310231,3.0,1758.2,1757.9,5.80133629]
[1745535310431,12.98799135,1758.3,1757.9,5.80133629]
[1745535310632,7.30048652,1758.3,1757.9,5.80118364]
[1745535310953,3.0,1758.2,1757.9,5.80118364]
[1745535311731,3.0,1758.2,1758.0,5.68827308]
[1745535311949,3.0,1758.2,1757.9,5.80116328]
[1745535312132,3.0,1758.2,1758.1,0.11232816]
[1745535312332,4.03004865,1758.2,1758.0,5.8007221]
[1745535312559,3.0,1758.3,1758.1,5.80016908]
[1745535312863,3.0,1758.4,1758.1,6.45264092]
[1745535313257,3.0,1758.4,1758.1,0.7648]
[1745535313450,8.68704175,1758.4,1758.0,5.68810233]
[1745535313834,8.68704175,1758.4,1758.0,5.68804101]
[1745535314241,10.11331593,1758.4,1758.0,5.68804101]
[1745535316265,4.42627418,1758.4,1758.1,5.6878976]
[1745535316574,4.42627418,1758.4,1758.2,0.8307]
[1745535316872,3.8283,1758.6,1758.3,5.68719323]
[1745535317040,3.0,1758.6,1758.3,5.68719323]
[1745535318947,8.68647239,1758.6,1758.2,6.51820434]
[1745535319148,9.51117239,1758.6,1758.2,6.51820434]
[1745535319348,3.0,1758.4,1758.1,6.49593961]
[1745535319583,3.95111724,1758.5,1758.1,0.8082]
[1745535319740,9.63788979,1758.5,1758.1,6.49597839]
[1745535321572,0.95111724,1758.5,1758.2,5.68762932]
[1745535321765,8.68651054,1758.6,1758.2,5.68762932]
[1745535321966,5.6866665,1758.5,1758.2,5.68762932]
[1745535322165,8.68651054,1758.6,1758.2,5.68762932]
[1745535322367,8.68651054,1758.6,1758.2,5.68742678]
[1745535322566,3.0,1758.6,1758.2,6.33719519]
[1745535322881,3.0,1758.3,1758.1,6.49598555]
[1745535326689,3.0,1758.3,1758.0,5.68811353]
[1745535327052,3.0,1758.3,1758.0,11.37616664]
[1745535327892,3.0,1758.3,1758.1,5.68789569]
[1745535328182,3.0,1758.4,1758.1,5.68789569]
[1745535329877,8.68702512,1758.4,1758.1,5.68789569]
[1745535330053,8.68709768,1758.4,1758.1,5.68789569]
[1745535332184,8.68709768,1758.4,1758.0,11.37614405]
[1745535332384,8.68709768,1758.4,1758.0,11.37611169]
[1745535332572,8.68709768,1758.4,1758.0,5.68805311]
[1745535332884,8.68709768,1758.4,1758.1,5.68786565]
[1745535333292,8.68709768,1758.4,1758.0,11.37610657]
[1745535333583,8.68709768,1758.4,1758.0,11.37611458]
[1745535333990,8.68709768,1758.4,1758.0,11.37610983]
[1745535334282,8.68709768,1758.4,1758.1,5.68791097]
[1745535337599,3.0,1758.4,1758.1,5.68791097]
[1745535337762,8.68703038,1758.4,1758.1,5.68791097]
[1745535338297,3.0,1758.4,1758.1,5.68781802]
[1745535338504,8.68703846,1758.4,1758.1,5.68781802]
[1745535339107,3.0,1758.2,1758.0,11.37622941]
[1745535339406,3.0,1758.3,1758.1,5.68786551]
[1745535341404,3.0,1758.4,1758.1,5.68784107]
[1745535341592,8.68704636,1758.4,1758.1,5.68784107]
[1745535341795,8.68704636,1758.4,1758.1,6.44554107]
[1745535342205,3.0,1758.4,1758.1,6.44554107]
[1745535342386,5.72542744,1758.6,1758.3,5.68717753]
[1745535342387,11.28073244,1758.6,1758.3,5.68717753]
[1745535342910,3.0,1758.5,1758.2,5.68741656]
[1745535343699,3.0,1758.5,1758.3,5.68721247]
[1745535344710,3.0,1758.5,1758.2,11.37482563]
[1745535344879,3.0,1758.5,1758.2,11.3748602]
[1745535346280,3.0,1758.5,1758.2,5.68740907]
[1745535346690,3.0,1758.5,1758.2,11.37484067]
[1745535346890,8.68669028,1758.5,1758.2,5.68740907]
[1745535347094,8.68669028,1758.5,1758.1,7.65881308]
[1745535347095,3.0,1758.3,1758.0,11.37621682]
[1745535347283,3.8075,1758.3,1758.1,5.68793586]
[1745535347894,3.0,1758.3,1758.1,5.68793586]
[1745535349021,3.0,1758.3,1758.0,5.6880944]
[1745535349022,3.0,1758.3,1758.0,11.37621805]
[1745535349306,3.0,1758.3,1758.0,11.376172]
[1745535350208,3.0,1758.3,1758.1,5.68790309]
[1745535350604,3.0,1758.3,1758.0,5.6880776]
[1745535350908,3.0,1758.3,1758.0,5.68805721]
[1745535352105,3.0,1758.3,1758.1,5.6879496]
[1745535353171,6.46630997,1758.4,1758.1,6.49323538]
[1745535353172,3.0,1758.4,1758.1,6.49323538]
[1745535354073,8.68700384,1758.4,1758.1,6.49323538]
[1745535356815,3.0,1758.4,1758.2,5.68762925]
[1745535357012,3.0,1758.4,1758.1,6.49323538]
[1745535357623,5.5638,1758.6,1758.1,2.02363727]
[1745535357833,8.37257173,1759.7,1758.1,2.02363727]
[1745535357834,0.8146,1758.8,1758.5,5.68659777]
[1745535357982,11.26988299,1758.9,1758.5,5.68639347]
[1745535358183,3.0,1758.8,1758.6,6.45075018]
[1745535358424,6.47819421,1759.1,1758.8,5.68569479]
[1745535358627,8.17356759,1759.1,1758.7,11.37166926]
[1745535358823,3.0,1759.0,1758.7,5.68582368]
[1745535358982,10.47562162,1759.2,1758.8,5.68556605]
[1745535359191,3.0,1759.1,1758.8,5.68556605]
[1745535359507,5.68280735,1759.7,1759.3,5.68387247]
[1745535359818,0.8277,1759.9,1759.3,6.61711219]
[1745535359819,6.50997404,1759.9,1759.3,6.61711219]
[1745535360023,3.0,1759.7,1759.4,5.68356826]
[1745535360202,6.33347226,1759.8,1759.4,5.68356826]
[1745535360531,0.6509974,1759.8,1759.5,5.68331388]
[1745535360693,6.51002393,1759.9,1759.5,5.68331388]
[1745535360894,3.8277,1759.9,1759.6,5.68305608]
[1745535361232,9.50985528,1759.9,1759.5,5.6832072]
[1745535362417,3.8277,1759.9,1759.6,5.68296532]
[1745535363126,9.51006369,1759.9,1759.5,5.68323627]
[1745535363591,9.51006369,1759.9,1759.5,6.90013797]
[1745535363791,3.8277,1759.9,1759.6,5.68309569]
[1745535365201,3.8277,1759.9,1759.5,6.90011571]
[1745535365202,3.8277,1759.9,1759.5,1.2169017]
[1745535365408,3.0,1759.6,1759.3,11.36777748]
[1745535365718,3.0,1759.6,1759.4,5.68374164]
[1745535367121,3.0,1759.7,1759.4,5.68374164]
[1745535367319,8.68281705,1759.7,1759.4,5.68374164]
[1745535367929,3.0,1759.7,1759.4,5.68374164]
[1745535368531,3.0,1759.8,1759.5,5.68335519]
[1745535369333,3.0,1759.8,1759.5,6.82006487]
[1745535370034,8.68248853,1759.8,1759.5,6.82006487]
[1745535370208,8.68248853,1759.8,1759.5,1.13670968]
[1745535370414,8.68248853,1759.8,1759.4,5.68353594]
[1745535370918,8.68248853,1759.8,1759.4,11.36712788]
[1745535371123,8.68248853,1759.8,1759.5,5.68339694]
[1745535371725,8.68248853,1759.8,1759.4,5.68353594]
[1745535371938,8.68248853,1759.8,1759.3,7.37526233]
[1745535372317,5.68291057,1759.7,1759.4,5.68364707]
[1745535372526,8.68248853,1759.8,1759.4,5.68364707]
[1745535372819,14.36520754,1759.8,1759.4,5.68364707]
[1745535373529,3.0,1759.8,1759.3,7.37526233]
[1745535373727,0.8277,1759.9,1759.2,5.68430568]
[1745535373728,3.0,1759.5,1759.2,5.68430568]
[1745535374648,3.0,1759.5,1759.2,5.68422407]
[1745535374819,3.0,1759.6,1759.3,5.68378433]
[1745535375019,3.8149,1759.7,1759.4,5.68364308]
[1745535375224,6.47708507,1759.8,1759.5,5.68318671]
[1745535375401,0.7946,1759.8,1759.5,11.36641653]
[1745535375627,9.47711811,1759.8,1759.5,5.68318671]
[1745535377340,9.47711811,1759.8,1759.4,6.32821777]
[1745535377646,9.47711811,1759.8,1759.4,12.0117872]
[1745535378142,9.47711811,1759.8,1759.5,5.68341131]
[1745535378452,9.47711811,1759.8,1759.5,5.6833887]
[1745535379648,5.68295955,1759.7,1759.4,6.32821009]
[1745535380156,5.68295955,1759.7,1759.4,5.68352578]
[1745535380310,9.47711811,1759.8,1759.4,5.68352578]
[1745535380659,9.47711811,1759.8,1759.5,5.68331458]
[1745535381352,9.47715045,1759.8,1759.5,5.68331458]
[1745535382735,3.7946,1759.8,1759.5,5.68331458]
[1745535383240,9.47712753,1759.8,1759.5,5.68331458]
[1745535385634,3.7946,1759.8,1759.5,12.50323415]
[1745535386343,3.7946,1759.8,1759.5,6.81991957]
[1745535386847,3.7946,1759.8,1759.6,5.68310787]
[1745535387047,3.7946,1759.8,1759.5,12.50312474]
[1745535387413,3.7946,1759.8,1759.5,6.81989238]
[1745535387645,3.7757,1759.9,1759.6,6.36482351]
[1745535388114,9.45794675,1759.9,1759.6,6.36482351]
[1745535388642,9.45794675,1759.9,1759.5,5.68324786]
[1745535388831,9.45794675,1759.9,1759.5,11.36642498]
[1745535389036,9.45794675,1759.9,1759.5,5.6832047]
[1745535389238,3.0,1759.7,1759.5,5.6832047]
[1745535389440,3.0,1759.7,1759.5,11.36641385]
[1745535389640,3.0,1759.7,1759.5,5.6832047]
[1745535389945,3.0,1759.7,1759.5,6.81988669]
[1745535390147,3.0,1759.7,1759.5,12.50309249]
[1745535390457,3.7757,1759.9,1759.6,5.68310979]
[1745535390954,9.45795852,1759.9,1759.6,5.68310979]
[1745535391553,3.7757,1759.9,1759.6,5.6829507]
[1745535392441,3.7757,1759.9,1759.6,6.48321791]
[1745535392835,9.45785538,1759.9,1759.6,6.48321791]
[1745535393285,9.45785538,1759.9,1759.6,0.8003]
[1745535393467,10.44532179,1759.9,1759.5,5.6832219]
[1745535393966,3.0,1759.7,1759.5,5.6832219]
[1745535395346,3.0,1759.7,1759.4,5.68362617]
[1745535395551,0.7714,1759.6,1759.3,6.43766401]
[1745535395755,0.7714,1759.6,1759.4,5.68356292]
[1745535396162,0.7714,1759.6,1759.3,6.43766401]
[1745535397374,0.7714,1759.6,1759.4,5.68371576]
[1745535397569,0.7714,1759.6,1759.3,6.43766401]
[1745535397873,3.0,1759.5,1759.2,5.68418824]
[1745535398075,3.0,1759.5,1759.3,5.68407107]
[1745535398273,3.0,1759.6,1759.4,5.68375582]
[1745535398464,9.44961321,1759.8,1759.4,5.68353233]
[1745535399175,9.44961321,1759.8,1759.4,11.36706621]
[1745535399363,9.44961321,1759.8,1759.5,5.6834082]
[1745535399974,9.44961321,1759.8,1759.4,11.36706621]
[1745535401174,9.44961321,1759.8,1759.5,5.68338245]
[1745535401874,3.767,1759.8,1759.5,5.68332045]
[1745535402066,3.767,1759.8,1759.5,11.36655232]
[1745535402265,3.767,1759.8,1759.5,11.3664713]
[1745535402477,3.7694,1759.9,1759.5,6.81993809]
[1745535402645,3.7694,1759.9,1759.6,5.68292271]
[1745535403141,9.45155642,1759.9,1759.6,5.68292271]
[1745535403390,3.7694,1759.9,1759.6,5.68292271]
[1745535404132,9.45156924,1759.9,1759.6,5.68292271]
[1745535406793,9.45156924,1759.9,1759.5,6.81988129]
[1745535406972,3.0,1759.6,1759.4,5.68362325]
[1745535407149,3.0,1759.7,1759.4,5.68362325]
[1745535407349,3.0,1759.7,1759.4,11.36718233]
[1745535408251,3.0,1759.7,1759.5,5.68342672]
[1745535410386,3.0,1759.7,1759.4,5.68355756]
[1745535410684,3.0,1759.7,1759.4,6.33088332]
[1745535411392,3.7754,1759.8,1759.5,5.68334081]
[1745535411565,9.45788325,1759.8,1759.5,5.68334081]
[1745535411999,3.7754,1759.8,1759.5,11.36665997]
[1745535412309,9.45789057,1759.8,1759.5,5.68331916]
[1745535412612,3.7754,1759.8,1759.6,5.68302639]
[1745535413611,3.7754,1759.8,1759.6,5.6830797]
[1745535414610,3.0,1759.9,1759.7,5.68278683]
[1745535414812,3.0,1759.9,1759.6,11.36600005]
[1745535414979,3.0,1759.9,1759.7,5.68264258]
[1745535415180,3.8287,1760.0,1759.8,5.68232499]
[1745535415914,3.8287,1760.0,1759.7,12.50177468]
[1745535416285,3.8287,1760.0,1759.8,5.68245436]
[1745535416703,3.8287,1760.0,1759.7,6.8191321]
[1745535416886,3.8287,1760.0,1759.7,12.50169677]
[1745535417102,3.0,1760.1,1759.8,6.93241635]
[1745535417280,3.0,1760.1,1759.8,5.68224667]
[1745535417983,8.68155949,1760.1,1759.8,5.68224667]
[1745535418284,8.68155949,1760.1,1759.7,11.36531313]
[1745535418706,14.36329153,1760.1,1759.7,5.68265613]
[1745535418906,14.36329704,1760.1,1759.7,5.68265613]
[1745535419084,8.68155949,1760.1,1759.7,6.81921201]
[1745535420130,14.36329055,1760.1,1759.7,6.81921201]
[1745535420431,14.36329055,1760.1,1759.5,1.9995328]
[1745535420432,3.82,1759.8,1759.5,6.88466592]
[1745535420618,3.82,1759.8,1759.5,6.88464975]
[1745535420808,3.82,1759.8,1759.5,12.56785401]
[1745535421215,3.82,1759.8,1759.6,5.68300392]
[1745535421733,3.7568,1759.9,1759.6,11.36591136]
[1745535421931,3.7568,1759.9,1759.6,6.93963442]
[1745535422236,3.7568,1759.9,1759.6,5.6829]
[1745535422803,3.7568,1759.9,1759.6,11.36578593]